Cogmind - Beta 13 @@@ ROGUE MODE // 2024.04.06 @ 17:19:04 Player: graour Result: Self-destructed Performance ------------- Evolutions (2) 1000 Regions Visited (4) 800 Robots Destroyed (18) 90 Value Destroyed (481) 481 Prototype IDs (0) 0 Alien Tech Used (0) 0 Bonus (0) 0 TOTAL SCORE: 2371 Bonus ------- None Cogmind --------- Core Integrity 213/550 Matter 150/300 Energy 24/100 System Corruption 0% Temperature Warning (338) Movement Walking (126) Location -8/Materials Parts ------- > --- POWER (2) -------- (None) > --- PROPULSION (3) --- Carbon-fiber Leg Carbon-fiber Leg Makeshift Leg > --- UTILITY (4) ------ Signal Interpreter ECM Suite ECM Suite > --- WEAPON (2) ------- Heavy Particle Cannon > --- INVENTORY (5) ---- Carbon-fiber Leg Targeting Computer Peak State ------------ > --- POWER ------------ Light Nuclear Core Light Angular Momentum Engine > --- PROPULSION ------- Carbon-fiber Leg Carbon-fiber Leg Makeshift Leg > --- UTILITY ---------- Small Storage Unit Large Battery Signal Interpreter ECM Suite > --- WEAPON ----------- Heavy Laser Assault Cannon > --- INVENTORY -------- Carbon-fiber Leg Carbon-fiber Leg Carbon-fiber Leg Targeting Computer ECM Suite ECM Suite ECM Suite Hardened Light Armor Plating [Rating: 30] Favorites ----------- Power Light Ion Engine Engine Light Ion Engine Power Core Light Nuclear Core Propulsion Carbon-fiber Leg Leg Carbon-fiber Leg Flight Unit Flight Unit Utility ECM Suite Device ECM Suite Storage Small Storage Unit Processor Signal Interpreter Weapon Assault Rifle Energy Gun Heavy Laser Energy Cannon Heavy Particle Cannon Ballistic Gun Assault Rifle Ballistic Cannon Assault Cannon Build | -11 -10 -9 -9 -8 ------- Run | Yrd Mat Mat Min Mat Slots Evolved 4 | . . 2 . 2 Power 1 | . . 1 . . Propulsion 1 | . . . . 1 Utility 2 | . . 1 . 1 Weapon . | . . . . . Parts Attached 42 | 6 2 17 . 17 Power 8 | 1 . 5 . 2 Engine 7 | 1 . 5 . 1 Core 1 | . . . . 1 Reactor . | . . . . . Propulsion 17 | 2 . 7 . 8 Treads . | . . . . . Leg 13 | 2 . 3 . 8 Wheel . | . . . . . Hover . | . . . . . Flight 4 | . . 4 . . Utility 8 | 1 2 2 . 3 Device 4 | . 1 1 . 2 Storage 2 | 1 . . . 1 Processor 2 | . 1 1 . . Hackware . | . . . . . Protection . | . . . . . Artifact . | . . . . . Weapon 9 | 2 . 3 . 4 Energy Gun 2 | . . . . 2 Energy Cannon 1 | . . . . 1 Ballistic Gun 5 | 2 . 3 . . Ballistic Cannon 1 | . . . . 1 Launcher . | . . . . . Special Weapon . | . . . . . Impact Weapon . | . . . . . Slashing Weapon . | . . . . . Piercing Weapon . | . . . . . Special Melee Weapon . | . . . . . Unidentified Prototypes . | . . . . . Parts Lost 18 | . . 11 . 7 Power 6 | . . 4 . 2 Propulsion 5 | . . 4 . 1 Utility 2 | . . . . 2 Weapon 5 | . . 3 . 2 Highest Loss Streak 10 | . . 10 . 6 To Critical Strikes . | . . . . . Average Slot Usage (%) 73 | . 98 88 33 85 Engine 8 | . 14 18 . 5 Core 2 | . . . . 6 Leg 15 | . 28 11 . 24 Flight 1 | . . 6 . . Device 12 | . 8 10 11 17 Storage 10 | . 14 11 11 8 Processor 9 | . 3 11 11 9 Energy Cannon 1 | . . . . 4 Ballistic Gun 7 | . 28 18 . . Ballistic Cannon 3 | . . . . 8 Naked Turns . | . . . . . Heaviest Build 34 | 11 12 18 7 34 Greatest Support 50 | 20 20 20 3 50 Greatest Overweight (x) 5 | . . 5 2 4 Average Overweight (x) . | . . . 2 . Largest Inventory Capacity 8 | 8 8 8 8 8 Average Capacity 7 | 6 8 8 8 6 Most Carried 8 | 4 8 8 5 8 Average Carried 5 | 1 4 7 4 5 Final Capacity 8 | 8 8 8 8 5 Final Carried 8 | 4 8 4 5 2 Class Distribution -------------------- 79% | Mutant 20% | Scavenger-Mutant Dominant Class ---------------- Mutant | -10/Materials Mutant | -9/Materials Mutant | -9/Mines Mutant | -8/Materials Resources | -11 -10 -9 -9 -8 ----------- Run | Yrd Mat Mat Min Mat Matter Collected 742 | 287 32 132 41 250 Remotely 17 | . 17 . . . Salvage Created 480 | 54 32 181 . 213 Parts 38 | 3 1 16 . 18 Haulers Intercepted . | . . . . . Recyclers Shooed 1 | . . 1 . . Parts Field Recycled . | . . . . . Retrieved Matter . | . . . . . Parts Self-Destructed . | . . . . . Prevented . | . . . . . Kills | -11 -10 -9 -9 -8 ------- Run | Yrd Mat Mat Min Mat Combat Hostiles Destroyed 16 | . 1 6 . 9 Guns 7 | . 1 6 . . Cannons 9 | . . . . 9 Classes Destroyed 5 | 1 2 2 . . Recycler 1 | 1 . . . . Operator 1 | . 1 . . . Swarmer 8 | . 1 3 . 4 Grunt 6 | . . 2 . 4 Sentry 2 | . . 1 . 1 Best Kill Streak 5 | 1 1 4 . 5 Combat Bots Only 5 | . 1 4 . 5 Max Kills in Single Turn 1 | 1 1 1 . 1 Gunslinging . | . . . . . Exploded . | . . . . . Melee . | . . . . . Uniques/NPCs Destroyed . | . . . . . Combat | -11 -10 -9 -9 -8 -------- Run | Yrd Mat Mat Min Mat Hostile Shots Fired 194 | . 5 80 . 109 Missed 44 | . 1 17 . 26 Damage Taken 2248 | . 33 1080 . 1135 Core 670 | . . 333 . 337 Absorbed by Shields . | . . . . . Core Remaining (%) 72 | 100 100 . 16 . Volleys Fired 79 | 7 8 29 . 35 Largest 2 | 2 2 2 . 2 Hottest 144 | 40 40 40 . 144 Shots Fired 138 | 14 16 54 . 54 Gun 86 | 14 16 54 . 2 Cannon 52 | . . . . 52 Launcher . | . . . . . Special . | . . . . . Kinetic 116 | 14 16 54 . 32 Thermal 22 | . . . . 22 Explosive . | . . . . . Electromagnetic . | . . . . . Robot Hit Streak 10 | 4 5 9 . 10 Robot Miss Streak 10 | 2 2 4 . 10 Penetration Max . | . . . . . Secondary Targets 3 | . . 3 . . Max Gunslinging Chain 1 | . . 1 . . Shots Hit Robots 79 | 9 8 36 . 26 Core Hits 34 | 2 4 16 . 12 Critical Kills . | . . . . . Critical Parts Destroyed . | . . . . . Critical Strikes 1 | . . . . 1 Blast 1 | . . . . 1 Melee Attacks . | . . . . . Impact . | . . . . . Slashing . | . . . . . Piercing . | . . . . . Sneak Attacks . | . . . . . Combat Hostiles . | . . . . . Follow-up Attacks . | . . . . . Damage Inflicted 1189 | 105 83 383 . 618 Guns 590 | 105 83 383 . 19 Cannons 592 | . . . . 592 Explosions . | . . . . . Melee . | . . . . . Ramming 7 | . . . . 7 Kinetic 1013 | 105 83 383 . 442 Thermal 169 | . . . . 169 Explosive . | . . . . . Electromagnetic . | . . . . . Impact . | . . . . . Slashing . | . . . . . Piercing . | . . . . . Highest Corruption 1 | . 1 . . . Average Corruption 1 | . 1 . . . Corruption Purged . | . . . . . Corruption Blocked . | . . . . . Overload Shots . | . . . . . Overflow Damage 6 | . . . . 6 Projectiles 6 | . . . . 6 Explosions . | . . . . . Melee . | . . . . . Knockbacks 4 | . . . . 4 Impact . | . . . . . Kinetic 3 | . . . . 3 Secondary 1 | . . . . 1 Self-Inflicted Damage . | . . . . . Shots . | . . . . . Rammed . | . . . . . Targets Rammed 1 | . . . . 1 Kicked 1 | . . . . 1 Crushed . | . . . . . Highest Temperature 567 | . . 28 . 567 Average Temperature 163 | . . 8 . 218 Received Heat Transfer 684 | . . 207 . 477 Effects 15 | . . . . 15 Shutdowns 3 | . . . . 3 Energy Bleed 1 | . . . . 1 Interference 6 | . . . . 6 Matter Decay 1 | . . . . 1 Damage (minor) 1 | . . . . 1 Damage (major) 2 | . . . . 2 Damage (core) 1 | . . . . 1 Siege Activations . | . . . . . Robots Corrupted . | . . . . . Combat Hostiles . | . . . . . Parts Fried . | . . . . . Impact Corruptions . | . . . . . Robots Melted . | . . . . . Combat Hostiles . | . . . . . Parts Melted . | . . . . . Heat Transferred 259 | . . . . 259 Parts Sabotaged . | . . . . . Parts Stolen . | . . . . . Parts Stripped . | . . . . . Power Chain Reactions . | . . . . . Alert | -11 -10 -9 -9 -8 ------- Run | Yrd Mat Mat Min Mat Peak Influence 215 | 5 81 173 37 215 Initial 37 | . 3 33 37 . Average 59 | 3 30 96 36 74 Maximum Alert Level 1 | . . . . 1 Low Security (%) 95 | 100 100 100 100 86 Level 1 4 | . . . . 13 Level 2 . | . . . . . Level 3 . | . . . . . Level 4 . | . . . . . Level 5 . | . . . . . High Security . | . . . . . Max Security . | . . . . . Squads Dispatched 1 | . . . . 1 Investigation . | . . . . . Extermination . | . . . . . Reinforcement 1 | . . . . 1 Assault . | . . . . . Garrison . | . . . . . Intercept . | . . . . . Searches Triggered . | . . . . . Construction Impeded . | . . . . . Haulers Reinforced . | . . . . . Active Scanning Responses . | . . . . . Cargo Convoy Interrupts . | . . . . . Stealth | -11 -10 -9 -9 -8 --------- Run | Yrd Mat Mat Min Mat Distress Signals 4 | . . 2 . 2 Communications Jammed . | . . . . . Distress Signals . | . . . . . Times Spotted 51 | . 5 16 . 30 Peak Tracking Total 9 | . 3 5 . 9 Tactical Retreats 8 | . 1 2 . 5 Traps | -11 -10 -9 -9 -8 ------- Run | Yrd Mat Mat Min Mat Traps Triggered 1 | . 1 . . . Indirectly . | . . . . . Trap Hack Attempts . | . . . . . Triggered . | . . . . . Disarmed . | . . . . . Reprogrammed . | . . . . . Reused . | . . . . . Traps Extracted . | . . . . . Installed . | . . . . . Triggered . | . . . . . Machines | -11 -10 -9 -9 -8 ---------- Run | Yrd Mat Mat Min Mat Machines Disabled 3 | . . . . 3 Max in Single Turn 2 | . . . . 2 Machines Repaired . | . . . . . Machines Dismantled . | . . . . . Machines Sabotaged . | . . . . . Overloaded Fab Kills . | . . . . . Hacking | -11 -10 -9 -9 -8 --------- Run | Yrd Mat Mat Min Mat Machines Accessed 3 | . 2 1 . . Terminals 3 | . 2 1 . . Fabricators . | . . . . . Repair Stations . | . . . . . Recycling Units . | . . . . . Scanalyzers . | . . . . . Garrison Access . | . . . . . Total Hacks 6 | . 4 2 . . Successful 1 | . 1 . . . Failed 5 | . 3 2 . . Catastrophic 2 | . 1 1 . . Database Lockouts . | . . . . . Manual 6 | . 4 2 . . Terminals 6 | . 4 2 . . Fabricators . | . . . . . Repair Stations . | . . . . . Recycling Units . | . . . . . Scanalyzers . | . . . . . Garrison Access . | . . . . . Terminal Hacks 1 | . 1 . . . Branch Access Points 1 | . 1 . . . Fabricator Hacks . | . . . . . Repair Station Hacks . | . . . . . Recycling Unit Hacks . | . . . . . Scanalyzer . | . . . . . Garrison Access Hacks . | . . . . . Unauthorized Hacks . | . . . . . Terminals . | . . . . . Fabricators . | . . . . . Repair Stations . | . . . . . Recycling Units . | . . . . . Scanalyzers . | . . . . . Garrison Access . | . . . . . Data Cores Recovered 1 | . 1 . . . Used . | . . . . . Hacking Detections 3 | . 2 1 . . Full Trace Events . | . . . . . Feedback Events . | . . . . . Feedback Blocked . | . . . . . Robot Schematics Acquired . | . . . . . Robots Built . | . . . . . Authchips . | . . . . . Time . | . . . . . Total Robot Build Rating . | . . . . . Part Schematics Acquired . | . . . . . Parts Built . | . . . . . Authchips . | . . . . . Time . | . . . . . Total Part Build Rating . | . . . . . Parts Repaired . | . . . . . Time . | . . . . . Parts Recycled . | . . . . . Recycled Matter . | . . . . . Retrieved Matter . | . . . . . Retrieved Components . | . . . . . Parts Scanalyzed . | . . . . . Part Schematics Acquired . | . . . . . Parts Damaged . | . . . . . Bothacking | -11 -10 -9 -9 -8 ------------ Run | Yrd Mat Mat Min Mat Used RIF Installer . | . . . . . Robots Hacked . | . . . . . Non-combat . | . . . . . Combat . | . . . . . Robot Hacks Applied . | . . . . . Relay Couplers Released . | . . . . . Fabnet Peak Effective % . | . . . . . Robots Rewired . | . . . . . Allies Hacked . | . . . . . Hacks Repelled . | . . . . . Allies | -11 -10 -9 -9 -8 -------- Run | Yrd Mat Mat Min Mat Total Allies 2 | . . . 2 . Largest Group 2 | . . . 2 2 Highest-Rated Group 41 | . . . 41 41 Highest-Rated Ally 31 | . . . 31 31 Total Orders . | . . . . . Ally Attacks 6 | . . . . 6 Total Damage 41 | . . . . 41 Kills . | . . . . . Allies Corrupted . | . . . . . Allies Melted . | . . . . . Intel | -11 -10 -9 -9 -8 ------- Run | Yrd Mat Mat Min Mat Robot Analysis Total . | . . . . . Derelict Logs Recovered . | . . . . . Drone Launches . | . . . . . Drone Recoveries . | . . . . . Exploration | -11 -10 -9 -9 -8 ------------- Run | Yrd Mat Mat Min Mat Turns Passed 1610 | 117 186 358 405 544 Spaces Moved 922 | 73 129 184 270 266 Core 328 | 3 . 28 270 27 Treads . | . . . . . Legs 541 | 70 129 103 . 239 Wheels . | . . . . . Hover . | . . . . . Flight 53 | . . 53 . . Fastest Speed 50 | 50 120 117 150 120 Average Speed 134 | 117 120 134 150 129 Slowest Speed 360 | 120 120 360 150 250 Overloaded Moves . | . . . . . Propulsion Burnouts . | . . . . . Robots Hopped . | . . . . . Cave-ins Triggered . | . . . . . Exploration Rate (%) 25 | 6 28 21 52 22 Regions Visited 4 Branch Regions 1 Pre-discovered Areas . | . . . . . Known Exits Taken 3 | . 1 1 1 . Unknown Exits Taken 1 | 1 . . . . Scrap Searched 1 | . . . 1 . Spaces Dug . | . . . . . Terrain Destroyed 10 | . . . . 10 Melee . | . . . . . Projectile 10 | . . . . 10 AOE . | . . . . . Terrain Rammed . | . . . . . Walls Destroyed . | . . . . . Machines Disabled . | . . . . . Actions | -11 -10 -9 -9 -8 --------- Run | Yrd Mat Mat Min Mat Total 1163 | 89 147 249 270 408 Wait 79 | . . 1 . 78 Move 918 | 72 128 183 269 266 Hop . | . . . . . Pick Up 21 | 4 6 6 1 4 Fast Attach 23 | 6 1 6 . 10 Attach 11 | . 1 7 . 3 Detach 5 | . 1 4 . . Swap 8 | . . 4 . 4 Drop 18 | . 2 9 . 7 Fire 79 | 7 8 29 . 35 Melee . | . . . . . Ram . | . . . . . Kick 1 | . . . . 1 Crush . | . . . . . Escape Stasis . | . . . . . Rewire . | . . . . . Trap . | . . . . . Miscellaneous . | . . . . . Route ------- -11/Scrapyard -10/Materials (discovered 2 exits: *Mat / Min) -9/Materials -9/Mines (discovered 2 exits: *Mat x2) -8/Materials History --------- Turn | Location | Event 39 | -11/Scrapyard | Discovered new exit (range 14) 118 | -11/Scrapyard | Entered Materials 157 | -10/Materials | Identified exit to Mines 259 | -10/Materials | Discovered new exit (range 3) 279 | -10/Materials | Identified exit to Materials 304 | -10/Materials | Entered another Materials area 304 | -9/Materials | Evolved 2 slots: Power x1, Utility x1 326 | -9/Materials | Build established: Mutant 617 | -9/Materials | Core integrity fell below 50% 648 | -9/Materials | Discovered new exit (range 9) 655 | -9/Materials | Core integrity fell below 20% 660 | -9/Materials | Identified exit to Mines 662 | -9/Materials | Entered Mines 669 | -9/Mines | Lost 10 parts (3p4n3w) 819 | -9/Mines | Discovered new exit (range 10) 831 | -9/Mines | Identified exit to Materials 1010 | -9/Mines | Discovered exit to Materials (range 8) 1067 | -9/Mines | Entered Materials 1067 | -8/Materials | Accompanied by 2 allies 1067 | -8/Materials | Evolved 2 slots: Propulsion x1, Utility x1 1072 | -8/Materials | Led the pair of lost Derelicts to an unsafe place 1602 | -8/Materials | Core integrity fell below 50% 1611 | -8/Materials | Self-destructed Last Messages --------------- Power failure, Lgt. Angular Momentum Engine shutdown. G-47 Trooper destroyed. Lgt. Angular Momentum Engine destroyed. Lgt. Nuclear Core destroyed. Critical hit (Burn: +37). Slug penetrates Wall. Carbon-fiber Leg destroyed. K-01 Serf collects debris. Overheating: Core damaged (-88). Slug penetrates Wall. Overheating: Energy bleed (-1). Overheating: Signal Interpreter damaged (-6). Overheating: Hvy. Laser damaged (-32). K-01 Serf collects debris. ECM Suite destroyed. K-01 Serf collects debris. Slug penetrates Wall. Hvy. Laser destroyed. Wall collapses. Map ----- +----------------------------------------------------+ | ??????????#####?????# #? #??????????????? | | ???######## #?????# ## #??????????????? | | ???# # #?????# #? #??????????????? | | ???# """ # #?????# ! #?? #######????????? | | ???# """ + ##########+######+### #????????? | | ???# """ # #????????? | | ???? # #????????? | | ???# # """" #????????? | | ???###??#"##+############ """% #????????? | | ????????# """ #??????# "% ########??? | | ????????# = "R" #??????# "" # #??? | | ????????# [ " " #??????+ "T # !""" #??? | | ????????# #??????# "" + """ #??? | | ????????# #??????+ # """ #??? | | ????????# """ #??????# # ! #??? | | ????????# """ #??????## #####" "# # #??? | | ????????# """ #???????# #???#"R"# ########??? | | ????????# #???????# #???#"""# #?????????? | | ????????##########???????#+######### #?????????? | | ?????????????????????????# + #?????????? | | ?????????????????????????# " =#????????#? | | ?????????????????????????# # ######## ## | | ?????????????????????????# " " """ # | | ?????????????????????????########### =#%"T" ? | | ????????????????????????############ [# ?? | | ????????????????????????#@ ## [[#=""" ""??? | | ????????????????????????# T" ## +%""" ""??? | | ????????????????????????# ## ="=""" ""??? | | ????????????????????????# k ## # % # | | ????????????????????????# = "" ## # % # | | ????????????????????????# Y%gk"" ## ########+## | | ????????????????????????# " "g% " ## # !#??? | | ??????????????????????#?# = ## # #??? | | ???????????????######## #;######+### + #??? | | ?????????????? h # """ #??? | | ?????????????? # """ #??? | | ?????????????? # """ #??? | | ?????????????????#############+################??? | | ????????????????????????#= #? ??????????? | | ????????????????????????# " ##??????????? | | ????????????????????????# """"" ##???????????? | | ????????????????????????# """"" #????????????? | | ????????????????????????# """"" #????????????? | | ????????????????????????# """ #????????????? | | ????????????????????????# #????????????? | | ????????????????????????#?#??########????????????? | | ?????????????????????????????????????????????????? | | ?????????????????????????????????????????????????? | | ?????????????????????????????????????????????????? | | ?????????????????????????????????????????????????? | +----------------------------------------------------+ Best States ------------- Heat Dissipation 31 Energy Generation 27 Energy Capacity 410 Matter Stores 299 Matter Capacity 300 Sight Range 16 Terrain Scan Density 10 ECM Strength 3 Evasion (%) 55 Targeting Accuracy 5 Item Schematics ----------------- None Robot Schematics ------------------ None Fabricated ------------ Nothing Alien Tech Used ----------------- None Achievements -------------- None Challenges ------------ None Game ------ Seed GravitonReinforcedWings Manual? 0 Play Time 00:18:14 Cumulative 10.1 hours Start 2024.04.06 @ 17:03:13 End 2024.04.06 @ 17:19:04 Sessions 1 Manual Loads 0 Difficulty Rogue Special Mode None Game No. 22 Rogue 22 Adventurer 0 Explorer 0 Win Type - Total 0 Types 0/0/0/0/0/0/0/0/0 Lore% 17 Gallery% 20 Achievement% 15 Wizard Run 0 Options --------- Layout 1 ASCII 0 Keyboard 0 Movement Arrows Keybinds 0 Fullscreen 1 Font 24/Smallcaps Map View 50x35 Zoom Use 0% Tactical HUD 0 Map Filters NONE Filters NONE Steam 1 RUN: 0ca105aa-4d7e-4ca0-99c7-47d198b99064